bitfinex/quotes_SOLUSD_20250514
["timestamp","ask_amount","ask_price","bid_price","bid_amount"]
[1747188740501,20.06736205,181.07,181.02,20.06736205]
[1747188740696,67.00876075,181.08,181.03,20.06736205]
[1747188741306,46.9413987,181.08,181.03,20.06736205]
[1747188741605,46.9413987,181.08,181.06,20.06736205]
[1747188741782,46.9413987,181.08,181.04,20.06736205]
[1747188742107,19.32847359,181.08,180.98,38.76]
[1747188742278,19.32847359,181.08,181.06,20.06736205]
[1747188742704,19.32847359,181.08,180.99,20.06736205]
[1747188743001,74.53311523,181.13,181.06,20.06736205]
[1747188743318,74.53311523,181.13,181.05,20.06736205]
[1747188743610,74.53311523,181.13,180.99,20.06736205]
[1747188743788,74.53311523,181.13,181.12,20.06736205]
[1747188743988,74.53311523,181.13,181.08,20.06736205]
[1747188743989,19.32313807,181.13,181.08,20.06736205]
[1747188744193,19.32313807,181.13,181.08,58.82736205]
[1747188744877,5.52089659,181.13,181.12,20.06736205]
[1747188745209,27.59055943,181.23,181.12,20.06736205]
[1747188745379,47.65792148,181.23,181.18,20.06736205]
[1747188745580,27.59055943,181.23,181.08,58.82736205]
[1747188745803,47.65792148,181.23,181.18,20.06736205]
[1747188746295,20.06736205,181.19,181.06,206.8]
[1747188746498,20.06736205,181.19,180.97,9.82618401]
[1747188746499,36.0,181.02,180.76,60.0]
[1747188746703,10.0,180.69,180.5,11.63434902]
[1747188746911,18.39784378,180.75,180.45,20.06736205]
[1747188747088,0.14216157,180.72,180.51,2.8385622]
[1747188747284,5.53066755,180.81,180.63,20.06736205]
[1747188747589,13.8208503,180.89,180.72,20.06736205]
[1747188747799,16.55843523,180.89,180.81,40.1347241]
[1747188748002,2.73758493,180.89,180.81,78.8747241]
[1747188748209,10.0,180.94,180.88,20.06736205]
[1747188748384,5.5263885,180.95,180.9,20.06736205]
[1747188748709,10.0,181.0,180.94,20.06736205]
[1747188748911,210.5929,181.18,180.91,38.74]
[1747188748912,10.0,181.02,180.97,20.06736205]
[1747188749102,10.0,181.02,180.99,20.06736205]
[1747188749301,27.60225778,181.15,181.01,20.06736205]
[1747188749302,10.0,181.03,181.01,20.06736205]
[1747188749504,5.5223528,181.09,181.02,38.74]
[1747188749700,5.5223528,181.09,181.03,38.74]
[1747188750008,15.5223528,181.09,181.04,20.06736205]
[1747188750197,10.0,181.05,181.03,38.74]
[1747188750401,10.0,181.04,181.03,38.74]
[1747188750610,5.5223528,181.09,180.8,27.54585427]
[1747188750611,10.0,181.02,180.92,26.0]
[1747188750911,5.5223528,181.09,180.9,20.06736205]
[1747188750912,10.0,181.01,180.98,20.06736205]
[1747188751117,10.0,181.0,180.93,38.74]
[1747188751297,10.0,181.0,180.98,20.06736205]
[1747188751493,10.0,181.0,180.93,38.74]
[1747188751693,10.0,181.0,180.98,20.06736205]
[1747188752021,10.0,180.98,180.9,20.06736205]
[1747188752316,10.0,180.99,180.97,20.06736205]
[1747188752502,5.5243554,181.02,180.91,38.74]
[1747188752503,10.0,180.97,180.91,38.74]
[1747188752709,10.0,181.02,180.96,20.06736205]
[1747188752889,10.0,181.02,180.92,18.64964886]
[1747188752890,10.0,181.01,180.92,18.64964886]
[1747188753286,10.0,181.01,181.0,20.06736205]
[1747188753601,5.52465131,181.01,181.0,20.06736205]
[1747188753804,15.52465131,181.01,181.0,20.06736205]
[1747188753981,15.52465131,181.01,180.91,38.74]
[1747188754180,10.0,180.99,180.91,42.05653569]
[1747188754408,10.0,180.99,180.86,0.14216157]
[1747188754409,10.0,180.89,180.73,1.5973]
[1747188754580,10.0,180.88,180.77,38.74]
[1747188754782,10.0,180.89,180.85,20.06736205]
[1747188755003,10.0,180.91,180.87,20.06736205]
[1747188755184,15.52791597,180.9,180.77,38.74]
[1747188755384,10.0,180.89,180.85,20.06736205]
[1747188755616,10.0,180.89,180.87,20.06736205]
[1747188755919,5.52791597,180.9,180.81,20.06736205]
[1747188756119,15.52791597,180.9,180.89,20.06736205]
[1747188756288,15.52791597,180.9,180.82,38.76]
[1747188756485,5.52791597,180.9,180.89,20.06736205]
[1747188756785,5.52791597,180.9,180.82,38.76]
[1747188756986,5.52791597,180.9,180.89,20.06736205]
[1747188757186,10.0,180.91,180.89,20.06736205]
[1747188757410,5.52730488,180.92,180.9,20.06736205]
[1747188757608,5.52730488,180.92,180.91,20.06736205]
[1747188758005,15.52730488,180.92,180.91,20.06736205]
[1747188758320,5.52730488,180.92,180.91,20.06736205]
[1747188759041,55.24556654,181.01,180.91,20.06736205]
[1747188759042,10.0,180.96,180.91,20.06736205]
[1747188759312,10.0,180.96,180.92,38.76]
[1747188759812,13.81368106,180.98,180.95,20.06736205]
[1747188760015,23.81368106,180.98,180.97,20.06736205]
[1747188760222,15.52486187,181.0,180.97,20.06736205]
[1747188760524,10.0,180.99,180.92,38.76]
[1747188761327,15.52608311,180.96,180.94,20.06736205]
[1747188762107,5.52608311,180.96,180.94,20.06736205]
[1747188762300,15.52608311,180.96,180.95,20.06736205]
[1747188763914,15.52608311,180.96,180.94,20.06736205]
[1747188764086,10.0,180.94,180.92,20.06736205]
[1747188764810,10.0,180.94,180.93,20.06736205]
[1747188765313,15.52669393,180.94,180.93,20.06736205]
[1747188765503,5.52669393,180.94,180.93,20.06736205]
[1747188765816,15.52669393,180.94,180.91,38.76]
[1747188765998,15.52669393,180.94,180.93,20.06736205]
[1747188766195,5.52669393,180.94,180.93,20.06736205]
[1747188767015,15.52669393,180.94,180.93,20.06736205]
[1747188767215,5.52669393,180.94,180.93,20.06736205]
[1747188767416,5.52669393,180.94,180.91,38.76]
[1747188767623,5.52669393,180.94,180.93,20.06736205]
[1747188767802,5.52669393,180.94,180.91,38.76]
[1747188767803,15.52669393,180.94,180.91,38.76]
[1747188768122,15.52669393,180.94,180.93,20.06736205]
[1747188768509,10.0,180.9,180.88,206.84]
[1747188768819,10.0,180.93,180.89,20.06736205]
[1747188769041,29.34342875,180.94,180.91,20.06736205]
[1747188769616,19.34342875,180.94,180.93,20.06736205]
[1747188769824,15.52669393,180.94,180.88,206.84]
[1747188770007,10.0,180.93,180.9,20.06736205]
[1747188770208,5.52669393,180.94,180.92,20.06736205]
[1747188770418,5.52669393,180.94,180.93,20.06736205]
[1747188770805,15.52669393,180.94,180.93,20.06736205]
[1747188771005,5.52669393,180.94,180.93,20.06736205]
[1747188771332,10.0,181.04,180.95,18.64964886]
[1747188771509,15.52364118,181.04,181.03,20.06736205]
[1747188773030,5.52364118,181.04,181.03,20.06736205]
[1747188774117,5.52242102,181.08,181.03,20.06736205]
[1747188774431,10.0,181.06,181.04,37.52]
[1747188774622,10.0,181.06,181.05,20.06736205]
[1747188775408,10.0,181.06,181.04,37.52]
[1747188775702,10.0,181.06,181.05,20.06736205]
[1747188776031,5.52242102,181.08,181.05,20.06736205]
[1747188776242,5.52242102,181.08,181.07,20.06736205]
[1747188776638,15.52242102,181.08,181.07,20.06736205]
[1747188777008,5.52211607,181.09,181.07,20.06736205]
[1747188777236,15.52211607,181.09,181.08,20.06736205]
[1747188777614,15.52211607,181.09,181.04,37.52]
[1747188777615,10.0,181.07,181.04,37.52]
[1747188777824,10.0,181.06,181.05,20.06736205]
[1747188778716,10.0,181.06,181.02,36.52]
[1747188779038,15.52303103,181.06,181.05,20.06736205]
[1747188779212,15.52303103,181.06,181.02,36.52]
[1747188779409,15.52303103,181.06,181.05,20.06736205]
[1747188780133,29.33060862,181.06,181.05,20.06736205]
[1747188780532,29.33060862,181.06,181.02,36.52]
[1747188780722,29.33060862,181.06,181.05,20.06736205]
[1747188781718,5.52303103,181.06,181.05,20.06736205]
[1747188782810,15.52303103,181.06,181.02,36.52]
[1747188783032,10.0,181.05,181.03,20.06736205]
[1747188783721,19.33274414,181.04,180.99,20.06736205]
[1747188783920,19.33274414,181.04,181.03,20.06736205]
[1747188784509,19.33274414,181.04,181.0,36.52]
[1747188784743,10.0,181.02,181.0,35.54]
[1747188785327,10.0,181.02,181.0,55.60736205]
[1747188785538,10.0,181.02,181.01,20.06736205]
[1747188785724,10.0,181.03,181.01,20.06736205]
[1747188785931,19.33274414,181.04,181.0,35.54]
[1747188785932,5.52425146,181.02,181.0,35.54]
[1747188786142,5.52425146,181.02,181.01,20.06736205]
[1747188786530,5.52303103,181.06,181.01,20.06736205]
[1747188786725,5.52303103,181.06,181.05,20.06736205]
[1747188787042,15.52303103,181.06,181.05,20.06736205]
[1747188787723,5.52303103,181.06,181.05,20.06736205]
[1747188788115,10.0,181.05,180.96,6.2958]
[1747188788417,10.0,181.05,181.02,20.06736205]
[1747188788717,29.33060862,181.06,181.02,20.06736205]
[1747188788929,10.0,181.05,181.02,20.06736205]
[1747188789241,5.52364118,181.04,181.02,20.06736205]
[1747188789544,5.52364118,181.04,181.03,20.06736205]
[1747188791342,19.33060862,181.06,181.03,20.06736205]
[1747188791522,19.33060862,181.06,180.99,20.06736205]
[1747188791523,19.33060862,181.06,181.04,20.06736205]
[1747188791728,19.33060862,181.06,181.05,20.06736205]
[1747188792041,5.52303103,181.06,180.99,20.06736205]
[1747188792238,19.33060862,181.06,181.05,20.06736205]
[1747188794756,5.52303103,181.06,181.05,20.06736205]
[1747188795547,10.0,181.07,181.05,20.06736205]
[1747188795753,10.0,181.07,181.06,20.06736205]
[1747188796242,5.52242102,181.08,181.06,20.06736205]
[1747188796429,15.52242102,181.08,181.06,20.06736205]
[1747188797037,29.32847359,181.08,181.03,35.54]
[1747188797242,10.0,181.05,181.02,35.52]
[1747188797433,10.0,181.05,181.03,20.06736205]
[1747188797626,29.32847359,181.08,181.04,20.06736205]
[1747188797936,29.32847359,181.08,181.06,20.06736205]
[1747188798128,10.0,181.07,181.05,20.06736205]
[1747188798849,29.32847359,181.08,181.05,20.06736205]
[1747188799040,19.32847359,181.08,181.06,20.06736205]
[1747188799353,19.32847359,181.08,181.04,20.06736205]
[1747188799354,10.0,181.06,181.04,20.06736205]
[1747188799651,10.0,181.06,181.05,35.52]
[1747188800228,10.0,181.02,181.0,206.76]
[1747188800424,10.0,181.02,181.01,20.06736205]
[1747188801029,10.0,181.04,181.01,20.06736205]
[1747188801237,15.52333609,181.05,181.03,20.06736205]
[1747188801540,10.0,181.04,181.0,206.76]
[1747188801725,10.0,181.02,181.01,20.06736205]
[1747188802441,29.33167632,181.05,181.01,20.06736205]
[1747188802846,10.0,181.02,181.0,206.76]
[1747188803057,10.0,181.02,181.01,20.06736205]
[1747188803356,15.52425146,181.02,181.01,13.53131608]
[1747188803558,15.52425146,181.02,181.0,242.28]
[1747188803734,15.52425146,181.02,181.01,13.53131608]
[1747188804087,5.52425146,181.02,181.01,13.53131608]
[1747188804271,15.52425146,181.02,181.01,13.53131608]
[1747188804730,5.52425146,181.02,181.01,13.53131608]
[1747188804931,5.52303103,181.06,181.01,13.53131608]
[1747188805135,10.0,181.05,181.01,13.53131608]
[1747188805334,15.52333609,181.05,181.04,13.53131608]
[1747188806066,5.52333609,181.05,181.04,13.53131608]
[1747188807465,5.52303103,181.06,181.04,49.05131608]
[1747188808750,5.52303103,181.06,181.05,13.53131608]
[1747188809644,5.52273611,181.07,181.05,13.53131608]
[1747188809948,5.52273611,181.07,181.06,13.53131608]
[1747188810345,5.52181115,181.1,181.06,13.53131608]
[1747188810652,5.52181115,181.1,181.09,13.53131608]
[1747188810848,5.52181115,181.1,181.05,18.64964886]
[1747188811342,5.52181115,181.1,181.09,13.53131608]
[1747188811961,5.52181115,181.1,181.05,18.64964886]
[1747188812174,5.52120141,181.12,181.09,13.53131608]
[1747188812345,5.52120141,181.12,181.1,13.53131608]
[1747188812545,15.52120141,181.12,181.1,13.53131608]
[1747188812755,15.52120141,181.12,181.05,18.64964886]
[1747188813056,15.52120141,181.12,181.1,13.53131608]
[1747188813257,10.0,181.11,181.09,35.52]
[1747188813768,5.52181115,181.1,181.09,35.52]
[1747188815745,10.0,181.11,181.09,35.52]
[1747188816147,29.32420494,181.12,181.09,49.05131608]
[1747188816346,5.52120141,181.12,181.1,13.53131608]
[1747188816569,5.52120141,181.12,181.09,35.52]
[1747188816769,10.0,181.11,181.09,35.52]
[1747188816946,5.52120141,181.12,181.01,18.933972]
[1747188816947,10.0,181.08,181.06,35.22]
[1747188817141,10.0,181.08,181.06,48.75131608]
[1747188817368,10.0,181.08,181.07,13.53131608]
[1747188817668,15.52242102,181.08,181.07,13.53131608]
[1747188818039,15.52242102,181.08,181.06,35.22]
[1747188818245,15.52242102,181.08,181.07,13.53131608]
[1747188818670,5.52242102,181.08,181.07,13.53131608]
[1747188819173,15.52242102,181.08,181.07,13.53131608]
[1747188819546,15.52242102,181.08,181.06,48.75131608]
[1747188820073,5.52242102,181.08,181.06,48.75131608]
[1747188820670,5.52242102,181.08,181.07,13.53131608]
[1747188821043,15.52242102,181.08,181.07,13.53131608]
[1747188821274,10.0,181.1,181.07,13.53131608]
[1747188821441,10.0,181.1,181.09,13.53131608]
[1747188821862,10.0,181.1,181.06,35.22]
[1747188822173,10.0,181.1,181.09,13.53131608]
[1747188822677,10.0,181.1,181.06,35.22]
[1747188822969,10.0,181.1,181.08,13.53131608]
[1747188823170,19.32527192,181.11,181.06,35.22]
[1747188823381,15.52181115,181.1,181.09,13.53131608]
[1747188823562,5.52181115,181.1,181.09,13.53131608]
[1747188823747,15.52181115,181.1,181.09,13.53131608]
[1747188824178,5.52181115,181.1,181.09,13.53131608]
[1747188824475,10.0,181.08,181.01,18.64964886]
[1747188824655,10.0,181.08,181.06,13.53131608]
[1747188825077,10.0,181.06,181.05,35.22]
[1747188825269,15.52303103,181.06,181.05,48.75131608]
[1747188825470,5.52303103,181.06,181.05,48.75131608]
[1747188825979,5.52303103,181.06,181.05,35.22]
[1747188826191,5.52303103,181.06,181.05,48.75131608]
[1747188827494,5.52272601,181.07,181.05,48.75131608]
[1747188827655,5.52272601,181.07,181.06,13.53131608]
[1747188828351,5.52243435,181.08,181.06,13.53131608]
[1747188828555,5.52150626,181.11,181.07,13.53131608]
[1747188828782,5.52150626,181.11,181.1,13.53131608]
[1747188829291,5.52089659,181.13,181.1,13.53131608]
[1747188829452,5.52089659,181.13,181.12,13.53131608]
[1747188829879,2.76222037,181.14,181.12,13.53131608]
[1747188830065,5.51967765,181.17,181.13,13.53131608]
[1747188830885,10.0,181.16,181.13,13.53131608]
[1747188831608,15.51998233,181.16,181.15,13.53131608]
[1747188832281,18.26004854,181.16,181.15,13.53131608]
[1747188834210,22.06000438,181.16,181.06,18.64964886]
[1747188834507,10.0,181.14,181.12,13.53131608]
[1747188835718,5.52089659,181.13,181.12,13.53131608]
[1747188836089,5.52089659,181.13,181.0,210.07488037]
[1747188836287,10.0,181.11,181.01,88.96964886]
[1747188836589,10.0,181.11,181.0,210.07488037]
[1747188836590,10.0,181.07,181.02,35.22]
[1747188836796,10.0,181.07,181.06,13.53131608]
[1747188837491,10.0,181.08,181.06,13.53131608]
[1747188837810,10.0,181.08,181.02,35.22]
[1747188837811,5.52272601,181.07,181.02,35.22]
[1747188838017,15.52272601,181.07,181.02,35.22]
[1747188838605,10.0,181.07,181.02,35.22]
[1747188838814,10.0,181.07,181.06,13.53131608]
[1747188839005,26.0,181.17,181.06,13.53131608]
[1747188839006,10.0,181.12,181.06,13.53131608]
[1747188839199,10.0,181.12,181.02,38.53454146]
[1747188839200,15.52120141,181.12,181.11,13.53131608]
[1747188839707,10.0,181.11,181.1,13.53131608]
[1747188839912,5.52150626,181.11,181.1,13.53131608]
[1747188840106,15.52150626,181.11,181.1,13.53131608]
[1747188840304,5.52150626,181.11,181.05,18.64964886]
[1747188840501,5.52150626,181.11,181.1,13.53131608]
[1747188840897,10.0,181.13,181.1,13.53131608]
[1747188841095,10.0,181.13,181.12,13.53131608]
[1747188841321,15.5203602,181.15,181.12,13.53131608]
[1747188841494,15.5203602,181.15,181.14,13.53131608]
[1747188841689,5.5203602,181.15,181.14,13.53131608]
[1747188841936,15.5203602,181.15,181.14,13.53131608]
[1747188842422,5.5203602,181.15,181.14,13.53131608]
[1747188842824,15.5203602,181.15,181.12,35.22]
[1747188843125,15.5203602,181.15,181.14,13.53131608]
[1747188844992,10.0,181.14,181.08,13.53131608]
[1747188845199,93.1,181.13,181.12,13.53131608]
[1747188845433,10.0,181.12,181.11,13.53131608]
[1747188845809,10.0,181.12,181.09,35.22]
[1747188846131,10.0,181.12,181.11,13.53131608]
[1747188846446,15.52120141,181.12,181.09,35.22]
[1747188846911,15.52120141,181.12,181.11,13.53131608]
[1747188847523,10.0,181.15,181.11,13.53131608]
[1747188847699,10.0,181.15,181.14,13.53131608]
[1747188849181,43.79620103,181.22,181.14,13.53131608]
[1747188849182,10.0,181.2,181.14,13.53131608]
[1747188849305,220.0329,181.34,181.14,13.53131608]
[1747188849306,10.0,181.24,181.19,13.53131608]
[1747188849501,10.0,181.24,181.17,13.53131608]
[1747188849502,10.0,181.23,181.17,13.53131608]
[1747188849700,10.0,181.23,181.22,13.53131608]
[1747188849908,10.0,181.23,181.2,34.98]
[1747188850134,10.0,181.23,181.22,13.53131608]
[1747188850810,2.77333044,181.24,181.22,13.53131608]
[1747188851008,5.5176651,181.24,181.23,13.53131608]
[1747188851310,15.517224,181.26,181.23,13.53131608]
[1747188851628,15.517224,181.26,181.25,13.53131608]
[1747188851814,5.51632833,181.28,181.25,13.53131608]
[1747188852017,5.51632833,181.28,181.27,13.53131608]
[1747188852325,15.51632833,181.28,181.27,13.53131608]
[1747188853018,8.30345028,181.28,181.27,13.53131608]
[1747188853233,8.30345028,181.28,181.21,18.64964886]
[1747188853234,18.30345028,181.28,181.22,0.28432314]
[1747188853417,18.30345028,181.28,181.27,13.53131608]
[1747188853633,8.30345028,181.28,181.27,13.53131608]
[1747188854050,18.30345028,181.28,181.27,13.53131608]
[1747188854229,18.30345028,181.28,181.22,0.28432314]
[1747188854544,18.30345028,181.28,181.27,13.53131608]
[1747188854850,10.0,181.25,181.24,13.53131608]
[1747188855034,10.0,181.25,181.23,13.53131608]
[1747188855438,10.0,181.25,181.24,13.53131608]
[1747188856350,10.0,181.23,181.21,13.53131608]
[1747188856548,93.1,181.22,181.21,13.53131608]
[1747188856754,88.61845924,181.21,181.18,48.51131608]
[1747188857157,10.0,181.2,181.18,13.53131608]
[1747188857461,10.0,181.18,181.15,34.98]
[1747188857755,83.1,181.2,181.17,13.53131608]
[1747188857927,83.1,181.2,181.19,13.53131608]
[1747188858626,93.1,181.2,181.19,13.53131608]
[1747188858822,98.61876379,181.2,181.19,13.53131608]
[1747188862374,93.1,181.2,181.19,13.53131608]
[1747188862957,98.61876379,181.2,181.19,13.53131608]
[1747188863935,88.61876379,181.2,181.19,13.53131608]
[1747188864261,98.61876379,181.2,181.19,13.53131608]
[1747188864657,83.1,181.2,181.19,13.53131608]
[1747188865439,5.51754579,181.24,181.19,32.18096494]
[1747188865656,83.1,181.23,181.17,13.81563922]
[1747188866138,83.1,181.23,181.19,0.28432314]
[1747188866956,83.1,181.23,181.22,13.53131608]
[1747188867361,83.1,181.23,181.22,32.18096494]
[1747188867763,93.1,181.27,181.23,18.64964886]
[1747188867972,10.0,181.26,181.23,18.64964886]
[1747188868175,83.1,181.27,181.22,0.28432314]
[1747188868473,10.0,181.26,181.22,0.28432314]
[1747188868971,10.0,181.26,181.23,34.96]
[1747188869141,15.51693699,181.26,181.23,34.96]
[1747188869342,15.51693699,181.26,181.25,13.53131608]
[1747188869543,5.51693699,181.26,181.25,13.53131608]
[1747188869749,15.51693699,181.26,181.25,13.53131608]
[1747188871354,5.51693699,181.26,181.25,8.43412312]
[1747188871557,10.0,181.24,181.18,34.96]
[1747188871751,10.0,181.22,181.18,34.96]
[1747188871951,10.0,181.22,181.21,8.43412312]
[1747188873272,5.51815472,181.22,181.21,8.43412312]
[1747188874367,98.61789349,181.23,181.21,8.43412312]
[1747188874552,98.61789349,181.23,181.22,8.43412312]
[1747188874879,15.51789349,181.23,181.22,8.43412312]
[1747188875971,5.51789349,181.23,181.22,8.43412312]
[1747188876168,15.51789349,181.23,181.22,8.43412312]
[1747188876364,15.51789349,181.23,181.18,34.96]
[1747188876572,15.51789349,181.23,181.17,8.43412312]
[1747188876573,93.1,181.22,181.19,34.96]
[1747188877378,5.51845924,181.21,181.19,34.96]
[1747188877752,83.1,181.22,181.21,18.64964886]
[1747188877946,10.0,181.26,181.21,61.72377198]
[1747188878262,10.0,181.26,181.25,8.43412312]
[1747188878458,17.61747709,181.26,181.25,8.43412312]
[1747188879219,10.0,181.23,181.18,34.64]
[1747188879388,15.51802515,181.23,181.22,8.43412312]
[1747188879756,5.51802515,181.23,181.22,8.43412312]
[1747188879962,15.51802515,181.23,181.22,8.43412312]
[1747188881067,10.0,181.23,181.19,34.64]
[1747188881255,10.0,181.23,181.22,8.43412312]
[1747188881456,83.1,181.26,181.22,8.43412312]
[1747188881759,83.1,181.26,181.25,8.43412312]
[1747188883883,88.61693699,181.26,181.25,8.43412312]
[1747188884178,88.61693699,181.26,181.2,18.79181043]
[1747188884379,10.0,181.24,181.23,8.43412312]
[1747188884584,10.0,181.21,181.2,34.64]
[1747188884762,10.0,181.21,181.2,43.07412312]
[1747188885782,15.51845924,181.21,181.2,43.07412312]
[1747188886186,10.0,181.21,181.2,43.07412312]
[1747188886672,88.617282,181.25,181.2,43.07412312]
[1747188886871,88.617282,181.25,181.2,34.64]
[1747188886872,10.0,181.24,181.2,34.64]
[1747188887057,10.0,181.24,181.23,8.43412312]
[1747188888159,5.51754579,181.24,181.23,8.43412312]
[1747188888360,15.51754579,181.24,181.23,8.43412312]
[1747188888588,98.61754579,181.24,181.23,8.43412312]
[1747188888781,88.61754579,181.24,181.23,8.43412312]
[1747188888956,98.61754579,181.24,181.23,8.43412312]
[1747188889162,88.61754579,181.24,181.23,8.43412312]
[1747188889360,98.61754579,181.24,181.23,8.43412312]
[1747188889587,10.0,181.21,181.18,34.64]
[1747188889781,93.1,181.23,181.2,8.43412312]
[1747188889961,10.0,181.21,181.18,34.64]
[1747188890666,83.1,181.23,181.18,34.64]
[1747188890886,83.1,181.23,181.19,18.64964886]
[1747188891287,83.1,181.23,181.19,53.28964886]
[1747188891589,10.0,181.2,181.15,0.14216157]
[1747188891883,10.0,181.19,181.18,8.43412312]
[1747188892081,10.0,181.21,181.18,8.43412312]
[1747188892391,98.61815993,181.22,181.2,8.43412312]
[1747188892590,98.61815993,181.22,181.21,8.43412312]
[1747188892895,83.1,181.22,181.18,18.64964886]
[1747188893064,83.1,181.22,181.21,8.43412312]
[1747188893386,83.1,181.22,181.18,18.64964886]
[1747188893593,83.1,181.22,181.21,8.43412312]
[1747188894069,93.1,181.22,181.21,8.43412312]
[1747188894273,83.1,181.22,181.21,27.08377198]
[1747188894589,15.51753537,181.25,181.21,27.08377198]
[1747188894590,10.0,181.25,181.21,27.08377198]
[1747188894776,10.0,181.24,181.21,18.64964886]
[1747188895285,10.0,181.24,181.21,53.28964886]
[1747188895596,10.0,181.25,181.21,53.28964886]
[1747188896074,5.51696337,181.26,181.24,8.43412312]
[1747188896277,15.51696337,181.26,181.21,53.28964886]
[1747188896477,15.51696337,181.26,181.25,8.43412312]
[1747188896691,88.61665951,181.27,181.25,8.43412312]
[1747188896987,98.61665951,181.27,181.26,8.43412312]
[1747188897193,83.1,181.27,181.26,8.43412312]
[1747188897591,93.1,181.27,181.26,16.86824624]
[1747188897772,83.1,181.27,181.26,16.86824624]
[1747188897971,10.0,181.29,181.26,35.5178951]
[1747188898187,10.0,181.29,181.28,8.43412312]
[1747188899172,88.61548552,181.31,181.28,8.43412312]
[1747188899391,10.0,181.29,181.27,18.64964886]
[1747188899598,10.0,181.29,181.28,32.13693115]
[1747188900297,15.51602404,181.29,181.28,13.48728229]
[1747188901078,5.5157764,181.3,181.28,13.48728229]
[1747188901317,10.0,181.29,181.27,34.64]
[1747188901672,5.5157764,181.3,181.26,13.48728229]
[1747188901873,10.0,181.29,181.26,13.48728229]
[1747188902197,5.51613169,181.29,181.26,13.48728229]
[1747188902401,15.51613169,181.29,181.28,13.48728229]
[1747188902602,15.51613169,181.29,181.26,18.64964886]
[1747188902784,15.51613169,181.29,181.28,13.48728229]
[1747188902982,10.0,181.27,181.24,13.48728229]
[1747188903183,10.0,181.23,181.2,36.1884]
[1747188903386,10.0,181.23,181.22,13.48728229]
[1747188903773,10.0,181.24,181.22,13.48728229]
[1747188903979,10.0,181.23,181.22,13.48728229]
[1747188904180,15.51785024,181.23,181.22,13.48728229]
[1747188906383,10.0,181.23,181.22,13.48728229]
[1747188906818,10.0,181.19,181.16,6.4964]
[1747188906980,10.0,181.19,181.18,13.48728229]
[1747188907590,10.0,181.2,181.18,13.48728229]
[1747188907899,93.1,181.21,181.19,13.48728229]
[1747188908219,93.1,181.21,181.2,13.48728229]
[1747188908394,83.1,181.21,181.2,13.48728229]
[1747188915985,83.1,181.21,181.18,13.48728229]
[1747188915986,10.0,181.19,181.18,13.48728229]
[1747188916736,15.51906838,181.19,181.18,13.48728229]
[1747188917208,10.0,181.18,181.17,47.78728229]
[1747188918712,15.51937299,181.18,181.17,47.78728229]
[1747188919089,15.51937299,181.18,181.17,34.3]
[1747188919394,10.0,181.15,181.14,212.64823862]
[1747188920688,10.0,181.15,181.14,226.13552091]
[1747188921116,15.52028705,181.15,181.14,226.13552091]
[1747188921720,15.52028705,181.15,181.14,212.64823862]
[1747188921891,15.52028705,181.15,181.14,220.12728229]
[1747188922517,10.0,181.12,181.11,34.3]
[1747188922719,10.0,181.12,181.11,47.78728229]
[1747188923297,15.52120141,181.12,181.11,42.74732854]
[1747188924101,10.0,181.12,181.11,42.74732854]
[1747188924422,15.52130601,181.12,181.11,8.44732854]
[1747188924588,10.0,181.1,181.08,44.42362854]
[1747188924787,10.0,181.1,181.09,8.44732854]
[1747188925701,5.52130601,181.12,181.03,206.56]
[1747188925702,10.0,181.05,181.03,206.56]
[1747188926005,10.0,181.05,181.04,8.44732854]
[1747188927323,10.0,181.05,181.04,13.52661571]
[1747188927807,5.52333609,181.05,181.04,13.52661571]
[1747188927992,15.52333609,181.05,181.04,13.52661571]
[1747188929516,10.0,181.08,181.04,13.52661571]
[1747188929722,15.52242102,181.08,181.07,13.52661571]
[1747188930021,5.52188237,181.1,181.07,13.52661571]
[1747188930327,5.52188237,181.1,181.09,13.52661571]
[1747188930728,10.0,181.08,181.03,206.56]
[1747188930923,10.0,181.07,181.03,206.56]
[1747188931101,10.0,181.07,181.06,13.52661571]
[1747188931301,10.0,181.08,181.06,13.52661571]
[1747188931512,10.0,181.08,181.07,13.52661571]
[1747188931707,85.91872894,181.09,181.07,13.52661571]
[1747188931908,83.1,181.12,181.09,18.64964886]